{"text_format":"3","workbook":"xlsx","n_sheets":1,"sheets":["Badeværelsesombygningsudgifter"],"not_rendered":{"defined_names":3},"read":"whole","date_system":"1900"}

{"sheet":"Badeværelsesombygningsudgifter","index":0,"n_rows":23,"n_cols":10,"rows_kept":23,"merged":[[1,1,2,3],[2,4,2,6],[2,7,2,9],[21,1,21,3],[21,4,21,6],[21,7,21,9],[22,1,22,3],[22,4,22,6],[22,7,22,9]]}
[null,"Regnearket Omkostninger ved ombygning af badeværelset"]
[null,"BEMÆRK! Tabellens kolonner til differencer viser, om de faktiske omkostninger har overskredet de anslåede omkostninger. Røde tal angiver, at de er overskredet (negative tal), og sorte tal angiver, at de ikke er overskredet (positive tal). "]
[{"$nulls":4},"Specificerede udgifter (kr.)",null,null,"Omkostninger i alt (kr.)"]
[null,"Område","Elementer","Antal","Anslåede","Faktiske","Difference","Anslåede ","Faktiske ","Difference "]
[null,"Bad/brusebad","Støbejernsbadekar, 152 cm, standard",1,{"v":250,"d":"kr. 250.00"},{"$f":"RANDBETWEEN(E5+2,E5+20)","v":{"v":259,"d":"kr. 259.00"}},{"$f":"IFERROR(Omkostninger[[#This Row],[Anslåede]]-Omkostninger[[#This Row],[Faktiske]], \"\")","v":{"v":-9,"d":"kr. -9.00"}},{"$f":"IFERROR(Omkostninger[[#This Row],[Antal]]*Omkostninger[[#This Row],[Anslåede]], \"\")","v":{"v":250,"d":"kr. 250.00"}},{"$f":"IFERROR(Omkostninger[[#This Row],[Antal]]*Omkostninger[[#This Row],[Faktiske]], \"\")","v":{"v":259,"d":"kr. 259.00"}},{"$f":"IFERROR(Omkostninger[[#This Row],[Anslåede ]]-Omkostninger[[#This Row],[Faktiske ]], \"\")","v":{"v":-9,"d":"kr. -9.00"}}]
[null,"Bad/brusebad","Døre til brusebad med hængsler, standard",1,{"v":200,"d":"kr. 200.00"},{"v":204,"d":"kr. 204.00"},{"$f":"IFERROR(Omkostninger[[#This Row],[Anslåede]]-Omkostninger[[#This Row],[Faktiske]], \"\")","v":{"v":-4,"d":"kr. -4.00"}},{"$f":"IFERROR(Omkostninger[[#This Row],[Antal]]*Omkostninger[[#This Row],[Anslåede]], \"\")","v":{"v":200,"d":"kr. 200.00"}},{"$f":"IFERROR(Omkostninger[[#This Row],[Antal]]*Omkostninger[[#This Row],[Faktiske]], \"\")","v":{"v":204,"d":"kr. 204.00"}},{"$f":"IFERROR(Omkostninger[[#This Row],[Anslåede ]]-Omkostninger[[#This Row],[Faktiske ]], \"\")","v":{"v":-4,"d":"kr. -4.00"}}]
[null,"Bad/brusebad","Bruser, standard",1,{"v":50,"d":"kr. 50.00"},{"v":62,"d":"kr. 62.00"},{"$f":"IFERROR(Omkostninger[[#This Row],[Anslåede]]-Omkostninger[[#This Row],[Faktiske]], \"\")","v":{"v":-12,"d":"kr. -12.00"}},{"$f":"IFERROR(Omkostninger[[#This Row],[Antal]]*Omkostninger[[#This Row],[Anslåede]], \"\")","v":{"v":50,"d":"kr. 50.00"}},{"$f":"IFERROR(Omkostninger[[#This Row],[Antal]]*Omkostninger[[#This Row],[Faktiske]], \"\")","v":{"v":62,"d":"kr. 62.00"}},{"$f":"IFERROR(Omkostninger[[#This Row],[Anslåede ]]-Omkostninger[[#This Row],[Faktiske ]], \"\")","v":{"v":-12,"d":"kr. -12.00"}}]
[null,"Bad/brusebad","Vægparti til badekar, standard",1,{"v":200,"d":"kr. 200.00"},{"v":216,"d":"kr. 216.00"},{"$f":"IFERROR(Omkostninger[[#This Row],[Anslåede]]-Omkostninger[[#This Row],[Faktiske]], \"\")","v":{"v":-16,"d":"kr. -16.00"}},{"$f":"IFERROR(Omkostninger[[#This Row],[Antal]]*Omkostninger[[#This Row],[Anslåede]], \"\")","v":{"v":200,"d":"kr. 200.00"}},{"$f":"IFERROR(Omkostninger[[#This Row],[Antal]]*Omkostninger[[#This Row],[Faktiske]], \"\")","v":{"v":216,"d":"kr. 216.00"}},{"$f":"IFERROR(Omkostninger[[#This Row],[Anslåede ]]-Omkostninger[[#This Row],[Faktiske ]], \"\")","v":{"v":-16,"d":"kr. -16.00"}}]
[null,"Skabe","Medicinskab, 732 cm, luksus",1,{"v":200,"d":"kr. 200.00"},{"v":203,"d":"kr. 203.00"},{"$f":"IFERROR(Omkostninger[[#This Row],[Anslåede]]-Omkostninger[[#This Row],[Faktiske]], \"\")","v":{"v":-3,"d":"kr. -3.00"}},{"$f":"IFERROR(Omkostninger[[#This Row],[Antal]]*Omkostninger[[#This Row],[Anslåede]], \"\")","v":{"v":200,"d":"kr. 200.00"}},{"$f":"IFERROR(Omkostninger[[#This Row],[Antal]]*Omkostninger[[#This Row],[Faktiske]], \"\")","v":{"v":203,"d":"kr. 203.00"}},{"$f":"IFERROR(Omkostninger[[#This Row],[Anslåede ]]-Omkostninger[[#This Row],[Faktiske ]], \"\")","v":{"v":-3,"d":"kr. -3.00"}}]
[null,"Skabe","Modultoiletbord, 914 cm, standard",2,{"v":100,"d":"kr. 100.00"},{"v":112,"d":"kr. 112.00"},{"$f":"IFERROR(Omkostninger[[#This Row],[Anslåede]]-Omkostninger[[#This Row],[Faktiske]], \"\")","v":{"v":-12,"d":"kr. -12.00"}},{"$f":"IFERROR(Omkostninger[[#This Row],[Antal]]*Omkostninger[[#This Row],[Anslåede]], \"\")","v":{"v":200,"d":"kr. 200.00"}},{"$f":"IFERROR(Omkostninger[[#This Row],[Antal]]*Omkostninger[[#This Row],[Faktiske]], \"\")","v":{"v":224,"d":"kr. 224.00"}},{"$f":"IFERROR(Omkostninger[[#This Row],[Anslåede ]]-Omkostninger[[#This Row],[Faktiske ]], \"\")","v":{"v":-24,"d":"kr. -24.00"}}]
[null,"Bordplader","Keramiske fliser, luksus (antal)",5,{"v":22.5,"d":"kr. 22.50"},{"v":27,"d":"kr. 27.00"},{"$f":"IFERROR(Omkostninger[[#This Row],[Anslåede]]-Omkostninger[[#This Row],[Faktiske]], \"\")","v":{"v":-4.5,"d":"kr. -4.50"}},{"$f":"IFERROR(Omkostninger[[#This Row],[Antal]]*Omkostninger[[#This Row],[Anslåede]], \"\")","v":{"v":112.5,"d":"kr. 112.50"}},{"$f":"IFERROR(Omkostninger[[#This Row],[Antal]]*Omkostninger[[#This Row],[Faktiske]], \"\")","v":{"v":135,"d":"kr. 135.00"}},{"$f":"IFERROR(Omkostninger[[#This Row],[Anslåede ]]-Omkostninger[[#This Row],[Faktiske ]], \"\")","v":{"v":-22.5,"d":"kr. -22.50"}}]
[null,"Vandhaner","Vandhane, badekar, standard",1,{"v":90,"d":"kr. 90.00"},{"v":110,"d":"kr. 110.00"},{"$f":"IFERROR(Omkostninger[[#This Row],[Anslåede]]-Omkostninger[[#This Row],[Faktiske]], \"\")","v":{"v":-20,"d":"kr. -20.00"}},{"$f":"IFERROR(Omkostninger[[#This Row],[Antal]]*Omkostninger[[#This Row],[Anslåede]], \"\")","v":{"v":90,"d":"kr. 90.00"}},{"$f":"IFERROR(Omkostninger[[#This Row],[Antal]]*Omkostninger[[#This Row],[Faktiske]], \"\")","v":{"v":110,"d":"kr. 110.00"}},{"$f":"IFERROR(Omkostninger[[#This Row],[Anslåede ]]-Omkostninger[[#This Row],[Faktiske ]], \"\")","v":{"v":-20,"d":"kr. -20.00"}}]
[null,"Vandhaner","Vandhane, brusebad, enkelthåndtag, standard",1,{"v":115,"d":"kr. 115.00"},{"v":125,"d":"kr. 125.00"},{"$f":"IFERROR(Omkostninger[[#This Row],[Anslåede]]-Omkostninger[[#This Row],[Faktiske]], \"\")","v":{"v":-10,"d":"kr. -10.00"}},{"$f":"IFERROR(Omkostninger[[#This Row],[Antal]]*Omkostninger[[#This Row],[Anslåede]], \"\")","v":{"v":115,"d":"kr. 115.00"}},{"$f":"IFERROR(Omkostninger[[#This Row],[Antal]]*Omkostninger[[#This Row],[Faktiske]], \"\")","v":{"v":125,"d":"kr. 125.00"}},{"$f":"IFERROR(Omkostninger[[#This Row],[Anslåede ]]-Omkostninger[[#This Row],[Faktiske ]], \"\")","v":{"v":-10,"d":"kr. -10.00"}}]
[null,"Vandhaner","Vandhane til håndvask, standard",1,{"v":95,"d":"kr. 95.00"},{"v":100,"d":"kr. 100.00"},{"$f":"IFERROR(Omkostninger[[#This Row],[Anslåede]]-Omkostninger[[#This Row],[Faktiske]], \"\")","v":{"v":-5,"d":"kr. -5.00"}},{"$f":"IFERROR(Omkostninger[[#This Row],[Antal]]*Omkostninger[[#This Row],[Anslåede]], \"\")","v":{"v":95,"d":"kr. 95.00"}},{"$f":"IFERROR(Omkostninger[[#This Row],[Antal]]*Omkostninger[[#This Row],[Faktiske]], \"\")","v":{"v":100,"d":"kr. 100.00"}},{"$f":"IFERROR(Omkostninger[[#This Row],[Anslåede ]]-Omkostninger[[#This Row],[Faktiske ]], \"\")","v":{"v":-5,"d":"kr. -5.00"}}]
[null,"Gulvbelægning","Keramiske fliser, standard (antal)",35,{"v":12,"d":"kr. 12.00"},{"v":18,"d":"kr. 18.00"},{"$f":"IFERROR(Omkostninger[[#This Row],[Anslåede]]-Omkostninger[[#This Row],[Faktiske]], \"\")","v":{"v":-6,"d":"kr. -6.00"}},{"$f":"IFERROR(Omkostninger[[#This Row],[Antal]]*Omkostninger[[#This Row],[Anslåede]], \"\")","v":{"v":420,"d":"kr. 420.00"}},{"$f":"IFERROR(Omkostninger[[#This Row],[Antal]]*Omkostninger[[#This Row],[Faktiske]], \"\")","v":{"v":630,"d":"kr. 630.00"}},{"$f":"IFERROR(Omkostninger[[#This Row],[Anslåede ]]-Omkostninger[[#This Row],[Faktiske ]], \"\")","v":{"v":-210,"d":"kr. -210.00"}}]
[null,"Materialer","Håndklædeholder, standard",2,{"v":15,"d":"kr. 15.00"},{"v":30,"d":"kr. 30.00"},{"$f":"IFERROR(Omkostninger[[#This Row],[Anslåede]]-Omkostninger[[#This Row],[Faktiske]], \"\")","v":{"v":-15,"d":"kr. -15.00"}},{"$f":"IFERROR(Omkostninger[[#This Row],[Antal]]*Omkostninger[[#This Row],[Anslåede]], \"\")","v":{"v":30,"d":"kr. 30.00"}},{"$f":"IFERROR(Omkostninger[[#This Row],[Antal]]*Omkostninger[[#This Row],[Faktiske]], \"\")","v":{"v":60,"d":"kr. 60.00"}},{"$f":"IFERROR(Omkostninger[[#This Row],[Anslåede ]]-Omkostninger[[#This Row],[Faktiske ]], \"\")","v":{"v":-30,"d":"kr. -30.00"}}]
[null,"Materialer","Toiletpapirholder",1,{"v":10,"d":"kr. 10.00"},{"v":21,"d":"kr. 21.00"},{"$f":"IFERROR(Omkostninger[[#This Row],[Anslåede]]-Omkostninger[[#This Row],[Faktiske]], \"\")","v":{"v":-11,"d":"kr. -11.00"}},{"$f":"IFERROR(Omkostninger[[#This Row],[Antal]]*Omkostninger[[#This Row],[Anslåede]], \"\")","v":{"v":10,"d":"kr. 10.00"}},{"$f":"IFERROR(Omkostninger[[#This Row],[Antal]]*Omkostninger[[#This Row],[Faktiske]], \"\")","v":{"v":21,"d":"kr. 21.00"}},{"$f":"IFERROR(Omkostninger[[#This Row],[Anslåede ]]-Omkostninger[[#This Row],[Faktiske ]], \"\")","v":{"v":-11,"d":"kr. -11.00"}}]
[null,"Belysning","Indbyggede lamper, standard",4,{"v":25,"d":"kr. 25.00"},{"v":32,"d":"kr. 32.00"},{"$f":"IFERROR(Omkostninger[[#This Row],[Anslåede]]-Omkostninger[[#This Row],[Faktiske]], \"\")","v":{"v":-7,"d":"kr. -7.00"}},{"$f":"IFERROR(Omkostninger[[#This Row],[Antal]]*Omkostninger[[#This Row],[Anslåede]], \"\")","v":{"v":100,"d":"kr. 100.00"}},{"$f":"IFERROR(Omkostninger[[#This Row],[Antal]]*Omkostninger[[#This Row],[Faktiske]], \"\")","v":{"v":128,"d":"kr. 128.00"}},{"$f":"IFERROR(Omkostninger[[#This Row],[Anslåede ]]-Omkostninger[[#This Row],[Faktiske ]], \"\")","v":{"v":-28,"d":"kr. -28.00"}}]
[null,"Håndvask","Toilet, standard",2,{"v":60,"d":"kr. 60.00"},{"v":74,"d":"kr. 74.00"},{"$f":"IFERROR(Omkostninger[[#This Row],[Anslåede]]-Omkostninger[[#This Row],[Faktiske]], \"\")","v":{"v":-14,"d":"kr. -14.00"}},{"$f":"IFERROR(Omkostninger[[#This Row],[Antal]]*Omkostninger[[#This Row],[Anslåede]], \"\")","v":{"v":120,"d":"kr. 120.00"}},{"$f":"IFERROR(Omkostninger[[#This Row],[Antal]]*Omkostninger[[#This Row],[Faktiske]], \"\")","v":{"v":148,"d":"kr. 148.00"}},{"$f":"IFERROR(Omkostninger[[#This Row],[Anslåede ]]-Omkostninger[[#This Row],[Faktiske ]], \"\")","v":{"v":-28,"d":"kr. -28.00"}}]
[null,"Andet",null,1,{"v":20,"d":"kr. 20.00"},{"v":38,"d":"kr. 38.00"},{"$f":"IFERROR(Omkostninger[[#This Row],[Anslåede]]-Omkostninger[[#This Row],[Faktiske]], \"\")","v":{"v":-18,"d":"kr. -18.00"}},{"$f":"IFERROR(Omkostninger[[#This Row],[Antal]]*Omkostninger[[#This Row],[Anslåede]], \"\")","v":{"v":20,"d":"kr. 20.00"}},{"$f":"IFERROR(Omkostninger[[#This Row],[Antal]]*Omkostninger[[#This Row],[Faktiske]], \"\")","v":{"v":38,"d":"kr. 38.00"}},{"$f":"IFERROR(Omkostninger[[#This Row],[Anslåede ]]-Omkostninger[[#This Row],[Faktiske ]], \"\")","v":{"v":-18,"d":"kr. -18.00"}}]
[null,"Subtotal",null,null,{"$f":"SUBTOTAL(109,Omkostninger[Anslåede])","v":{"v":1464.5,"d":"kr. 1,464.50"}},{"$f":"SUBTOTAL(109,Omkostninger[Faktiske])","v":{"v":1631,"d":"kr. 1,631.00"}},{"$f":"SUBTOTAL(109,Omkostninger[Difference])","v":{"v":-166.5,"d":"kr. -166.50"}},{"$f":"SUBTOTAL(109,Omkostninger[[Anslåede ]])","v":{"v":2212.5,"d":"kr. 2,212.50"}},{"$f":"SUBTOTAL(109,Omkostninger[[Faktiske ]])","v":{"v":2663,"d":"kr. 2,663.00"}},{"$f":"SUBTOTAL(109,Omkostninger[[Difference ]])","v":{"v":-450.5,"d":"kr. -450.50"}}]
[null,"Uventede omkostninger (føjer 30 % til de anslåede omkostninger)",null,null,{"$f":"IFERROR(Omkostninger[[#Totals],[Anslåede]]*0.3, \"\")","v":{"v":439.34999999999997,"d":"kr. 439.35"}},null,null,{"$f":"IFERROR(Omkostninger[[#Totals],[Anslåede ]]*0.3, \"\")","v":{"v":663.75,"d":"kr. 663.75"}}]
[null,"Samlede omkostninger",null,null,{"$f":"IFERROR(SUM(E21:E21), \"\")","v":{"v":1464.5,"d":"kr. 1,464.50"}},null,null,{"$f":"IFERROR(SUM(Omkostninger[[#Totals],[Anslåede ]],Overskud), \"\")","v":{"v":2876.25,"d":"kr. 2,876.25"}}]